bitfinex/quotes_ETHUSD_20260106
["timestamp","ask_amount","ask_price","bid_price","bid_amount"]
[1767734737570,3.08842682,3275.6,3274.4,0.09363588]
[1767734738077,3.08842682,3275.6,3274.6,0.09363588]
[1767734738612,1.52277084,3275.5,3274.6,0.32412555]
[1767734738908,1.52277084,3275.3,3274.3,0.09363588]
[1767734739269,1.52277084,3275.1,3274.3,0.09363588]
[1767734739598,1.52277084,3275.1,3274.1,3.14784596]
[1767734739787,1.52277084,3275.1,3274.3,0.09363588]
[1767734740608,4.57613012,3275.1,3274.1,0.09363588]
[1767734740908,4.57613012,3275.1,3274.3,0.09363588]
[1767734741398,0.0355293,3275.0,3274.2,0.39229513]
[1767734741578,3.05335928,3275.1,3274.1,3.05425915]
[1767734741781,3.05335928,3275.1,3274.2,0.09363588]
[1767734743676,3.05335928,3275.1,3274.0,3.92296879]
[1767734743981,4.57613012,3275.1,3274.0,3.92296879]
[1767734744188,4.57613012,3275.1,3274.1,0.39229688]
[1767734744502,4.57613012,3275.1,3274.2,0.09363588]
[1767734744706,7.6294894,3275.1,3274.0,0.86863588]
[1767734744904,1.55830014,3275.0,3274.0,0.86863588]
[1767734745071,1.55830014,3275.0,3274.0,0.001]
[1767734746085,0.0355293,3275.0,3274.1,0.09363588]
[1767734746299,0.0355293,3275.0,3274.2,0.09363588]
[1767734746485,1.52277084,3275.2,3274.2,0.09363588]
[1767734746694,1.52176986,3274.9,3274.0,3.05531537]
[1767734746894,1.52176986,3274.9,3274.1,0.40853101]
[1767734746895,1.51376202,3274.9,3274.1,0.40853101]
[1767734747203,1.50175026,3274.9,3274.1,0.40853101]
[1767734747405,1.4947434,3274.9,3274.1,0.40853101]
[1767734747605,3.08195755,3275.0,3274.1,0.40853101]
[1767734747773,3.07394971,3275.0,3274.2,0.34638464]
[1767734747977,3.06494089,3275.0,3274.2,0.34638464]
[1767734748181,0.0355293,3275.0,3274.2,0.34638464]
[1767734748378,6.03492134,3275.2,3274.3,0.001]
[1767734749396,2.98167269,3275.2,3274.3,0.001]
[1767734749596,6.03492134,3275.2,3274.3,0.001]
[1767734750321,0.002,3275.3,3274.3,0.001]
[1767734750611,0.0355293,3275.2,3274.4,0.16061667]
[1767734751511,0.0355293,3275.5,3274.8,1.69880261]
[1767734751728,1.52277084,3276.1,3275.0,0.09363588]
[1767734751729,1.52277084,3276.0,3275.0,0.09363588]
[1767734751882,1.55830014,3276.0,3275.0,0.17924385]
[1767734752309,3.05259623,3275.9,3275.0,0.17924385]
[1767734754019,4.61083292,3276.0,3275.0,0.17924385]
[1767734754520,1.52277084,3275.9,3274.7,3.14729508]
[1767734755312,0.002,3276.2,3274.7,3.14729508]
[1767734755313,0.002,3276.2,3274.9,0.09363588]
[1767734755622,1.55830014,3276.1,3274.9,0.09363588]
[1767734755945,1.55830014,3276.1,3274.7,1.60516673]
[1767734756281,1.55830014,3276.1,3274.5,0.09363588]
[1767734756282,1.52277084,3275.9,3274.5,0.09363588]
[1767734756387,3.08824175,3275.8,3274.8,1.60516673]
[1767734756888,3.0882481,3275.8,3274.9,0.09363588]
[1767734757085,0.0355293,3276.0,3275.0,0.47523392]
[1767734757288,3.05250305,3276.0,3275.0,0.47523392]
[1767734757510,0.0375293,3276.2,3275.1,1.69880261]
[1767734757714,6.14228434,3276.2,3275.1,1.69880261]
[1767734759716,6.14228434,3276.2,3275.1,1.60516673]
[1767734759918,7.21620942,3276.2,3275.1,1.60516673]
[1767734760122,7.18068012,3276.2,3275.1,1.60516673]
[1767734760492,0.0355293,3276.1,3275.0,0.47523392]
[1767734760718,0.0355293,3276.1,3274.9,0.86763588]
[1767734760899,3.05250305,3276.0,3274.9,0.86763588]
[1767734761102,3.05250305,3276.0,3274.9,3.92116198]
[1767734761422,3.05250305,3276.0,3274.9,3.92216198]
[1767734761590,2.89950305,3276.0,3274.9,5.56089891]
[1767734761916,0.002,3275.9,3275.0,0.55608989]
[1767734762592,3.05463002,3275.9,3275.0,0.55608989]
[1767734764107,0.002,3275.9,3275.1,1.63873693]
[1767734765736,0.002,3275.9,3275.1,4.69206775]
[1767734765936,0.002,3275.9,3275.2,0.46920677]
[1767734766242,0.002,3275.9,3274.9,3.92216171]
[1767734766613,0.002,3275.9,3274.9,3.82852583]
[1767734766809,0.002,3275.9,3275.1,1.63873693]
[1767734767335,0.002,3275.9,3275.0,3.14706149]
[1767734767336,3.05213038,3276.4,3275.3,1.63873693]
[1767734767744,6.10426076,3276.4,3275.3,1.63873693]
[1767734767910,6.10426076,3276.4,3275.4,0.17323728]
[1767734768113,6.10426076,3276.4,3274.9,2.41373693]
[1767734768114,1.69460184,3276.3,3274.9,2.41373693]
[1767734768324,1.69460184,3276.3,3275.0,0.09363588]
[1767734768646,1.65907254,3276.3,3275.0,0.09363588]
[1767734768822,1.65907254,3276.1,3275.0,3.14704121]
[1767734769026,1.65907254,3276.1,3275.1,0.55607781]
[1767734769736,1.65907254,3276.1,3275.1,0.58661122]
[1767734769935,1.65907254,3276.1,3275.1,0.55607781]
[1767734770835,4.71157559,3276.0,3275.1,0.55607781]
[1767734771462,1.65907254,3275.9,3275.1,0.55607781]
[1767734772760,3.05268941,3275.8,3275.1,0.55607781]
[1767734773060,1.65907254,3275.9,3275.1,0.55607781]
[1767734773259,4.71167483,3275.9,3274.9,0.775]
[1767734773665,4.71167483,3275.9,3274.9,3.82847875]
[1767734774157,7.76427712,3275.9,3274.9,0.775]
[1767734774360,1.65907254,3275.8,3274.9,0.001]
[1767734774548,1.65907254,3275.6,3274.9,0.001]
[1767734774734,1.65907254,3275.4,3274.9,0.001]
[1767734775862,1.65907254,3275.2,3274.9,0.001]
[1767734776171,1.65907254,3275.2,3274.3,0.001]
[1767734777048,1.65907254,3275.0,3274.3,0.001]
[1767734777234,2.43564817,3275.0,3274.3,0.001]
[1767734778029,3.05334188,3275.1,3274.4,0.09363588]
[1767734779259,3.88777898,3275.2,3274.4,0.09363588]
[1767734779987,3.08877898,3275.2,3274.4,0.09363588]
[1767734780190,3.05324968,3275.2,3274.4,0.09363588]
[1767734780368,3.0528758,3275.6,3274.6,1.73237281]
[1767734780695,6.10578623,3275.6,3274.6,1.73237281]
[1767734781981,6.10578623,3275.6,3274.5,0.17333728]
[1767734781982,7.80038807,3275.6,3274.5,0.17333728]
[1767734782190,7.76485877,3275.6,3274.5,0.17333728]
[1767734782507,4.71194834,3275.6,3274.6,0.09363588]
[1767734782664,2.45807254,3275.9,3274.8,1.73237281]
[1767734782867,1.69460184,3276.3,3275.0,1.73237281]
[1767734783091,1.65907254,3276.1,3275.0,1.73237281]
[1767734783262,1.69460184,3276.0,3275.1,0.17323728]
[1767734783599,3.05259623,3275.9,3275.1,0.17323728]
[1767734783759,0.0355293,3275.8,3275.1,0.17323728]
[1767734785891,0.0355293,3275.8,3274.9,3.0534836]
[1767734786074,4.74725018,3275.9,3275.0,0.09363588]
[1767734786611,3.214,3276.8,3275.0,0.09363588]
[1767734786612,0.002,3276.8,3275.2,1.73237281]
[1767734786894,0.002,3276.8,3275.9,0.09363588]
[1767734786895,3.05180098,3276.8,3275.9,0.09363588]
[1767734787098,6.57488931,3276.8,3275.9,0.09363588]
[1767734787402,5.18216087,3276.8,3275.9,0.09363588]
[1767734788500,8.23396185,3276.8,3275.9,0.09363588]
[1767734789062,7.7626745,3276.8,3275.9,0.09363588]
[1767734789497,7.7626745,3276.8,3275.7,1.73237281]
[1767734789994,1.65907254,3276.7,3275.5,0.09363588]
[1767734790292,7.7629607,3276.6,3275.5,0.774]
[1767734790492,7.7629607,3276.6,3275.5,1.02463728]
[1767734790787,4.71101662,3276.6,3275.5,1.02463728]
[1767734790965,1.65907254,3276.6,3275.6,0.09363588]
[1767734791161,0.002,3277.1,3275.8,0.09363588]
[1767734791162,1.65907254,3276.9,3275.8,0.09363588]
[1767734791363,1.51043752,3276.8,3275.8,0.09363588]
[1767734791579,1.51043752,3276.8,3275.8,0.18260087]
[1767734792397,4.56228846,3276.7,3275.8,0.18260087]
[1767734792965,4.56228846,3276.7,3275.8,0.27623675]
[1767734793608,1.51043752,3276.6,3275.5,0.25063728]
[1767734793766,1.51043752,3276.6,3275.6,0.09363588]
[1767734794387,4.56247475,3276.5,3275.6,0.09363588]
[1767734794592,1.51043752,3276.4,3275.6,0.09363588]
[1767734794814,3.05198757,3276.6,3275.6,4.79066233]
[1767734795121,4.56242509,3276.6,3275.7,0.50412996]
[1767734796127,1.51043752,3276.6,3275.7,0.50412996]
[1767734796294,1.51043752,3276.5,3275.7,0.50412996]
[1767734796622,1.51043752,3276.5,3275.6,0.09363588]
[1767734796823,4.56253845,3276.5,3275.6,0.09363588]
[1767734797226,1.51043752,3276.5,3275.8,0.09363588]
[1767734797808,4.56247574,3276.5,3275.8,0.09363588]
[1767734799125,0.002,3276.2,3275.8,0.09363588]
[1767734799745,0.002,3276.2,3275.8,3.05268747]
[1767734800032,0.00099902,3276.5,3275.9,0.39890463]
[1767734800635,0.00099902,3276.5,3275.9,0.30526875]
[1767734805632,1.51143654,3276.5,3275.9,0.30526875]
[1767734805831,1.51143654,3276.5,3275.7,1.64415371]
[1767734806212,1.51143654,3276.5,3275.4,2.51178959]
[1767734806737,3.05213038,3276.4,3275.4,2.51178959]
[1767734806937,4.5625679,3276.4,3275.4,2.51178959]
[1767734807136,1.51043752,3276.4,3275.4,2.51178959]
[1767734807335,1.51043752,3276.4,3275.6,0.09363588]
[1767734808245,0.00099902,3276.5,3275.8,1.73778959]
[1767734809644,0.00099902,3276.5,3274.8,0.09363588]
[1767734809645,1.51043752,3276.4,3274.8,0.09363588]
[1767734809844,1.51043752,3276.3,3275.2,3.05317396]
[1767734810150,1.51043752,3276.3,3275.0,1.64415371]
[1767734810345,1.51043752,3276.1,3275.1,0.09363588]
[1767734811253,6.1050061,3276.0,3275.1,0.09363588]
[1767734811748,1.51043752,3275.9,3275.0,1.64415371]
[1767734811948,1.51043752,3275.9,3274.8,0.774]
[1767734812156,1.51043752,3275.9,3274.8,0.86763588]
[1767734812340,1.51043752,3275.8,3274.8,1.46770327]
[1767734812929,1.51043752,3275.8,3274.8,0.86763588]
[1767734813528,1.51043752,3275.6,3274.8,0.86763588]
[1767734813730,1.51043752,3275.6,3274.8,0.774]
[1767734815256,0.00099902,3276.5,3275.5,1.73778959]
[1767734815459,0.00099902,3276.5,3275.7,0.09363588]
[1767734815755,0.00099902,3276.5,3275.7,4.79057043]
[1767734815949,0.00099902,3276.5,3275.9,0.09363588]
[1767734816151,0.00099902,3276.5,3275.7,1.73778959]
[1767734816760,0.00099902,3276.5,3275.9,0.09363588]
[1767734816965,0.00099902,3276.5,3275.9,0.27677843]
[1767734817665,0.00099902,3276.5,3275.9,0.18314255]
[1767734817862,1.57689012,3276.5,3275.7,0.09363588]
[1767734819055,1.57689012,3276.5,3275.7,3.14636797]
[1767734819260,1.57689012,3276.5,3275.9,0.09363588]
[1767734819261,0.00099902,3276.5,3275.9,0.09363588]
[1767734819496,0.002,3277.0,3276.1,1.66641592]
[1767734819649,0.002,3277.0,3276.3,0.09363588]
[1767734819854,0.002,3277.0,3276.3,0.86763588]
[1767734820687,1.5778911,3277.0,3276.2,0.16664159]
[1767734820859,1.5778911,3277.0,3276.1,0.86763588]
[1767734821256,1.5778911,3277.0,3276.1,0.774]
[1767734821453,1.5778911,3277.0,3276.2,0.09363588]
[1767734821702,6.10458444,3277.3,3276.2,0.09363588]
[1767734821703,0.002,3277.3,3276.6,1.62717594]
[1767734821880,3.05085543,3277.8,3277.0,0.09363588]
[1767734822052,6.10175729,3277.8,3277.0,0.09363588]
[1767734822252,4.56836489,3277.9,3277.0,0.09363588]
[1767734822452,1.51561202,3277.8,3276.8,0.09363588]
[1767734822761,1.51561202,3277.8,3277.0,0.09363588]
[1767734822960,2.2775238,3277.8,3276.8,0.09363588]
[1767734823161,2.2775238,3277.8,3276.9,0.774]
[1767734823688,3.05091985,3277.7,3277.0,0.09363588]
[1767734823878,3.0508684,3277.8,3277.0,0.09363588]
[1767734824287,3.0508684,3277.8,3276.9,0.774]
[1767734824288,6.1017368,3277.8,3277.1,0.09363588]
[1767734825987,0.002,3277.9,3277.3,0.09363588]
[1767734826322,7.61832398,3278.4,3277.5,0.09363588]
[1767734826537,0.7620324,3278.3,3277.5,0.09363588]
[1767734826881,1.51561202,3278.2,3277.2,0.09363588]
[1767734827210,1.51561202,3278.2,3277.4,0.09363588]
[1767734827617,1.51561202,3278.2,3277.3,0.774]
[1767734827912,3.05064063,3278.0,3277.4,0.86763588]
[1767734828076,4.79394101,3278.1,3277.4,0.86763588]
[1767734828282,3.05230702,3278.4,3277.4,5.54598715]
[1767734828493,6.10261404,3278.4,3277.6,0.09363588]
[1767734828990,1.51561202,3278.3,3277.6,0.09363588]
[1767734829388,3.05230702,3278.4,3277.6,0.09363588]
[1767734829709,3.05230702,3278.4,3277.6,1.72081182]
[1767734830014,0.002,3278.4,3277.8,0.09363588]
[1767734830322,1.51561202,3278.3,3277.5,0.774]
[1767734830928,0.002,3278.4,3277.6,1.72081182]
[1767734831290,0.002,3278.4,3277.6,0.09363588]
[1767734832010,3.05036146,3278.3,3277.6,0.09363588]
[1767734834714,6.86274738,3278.3,3277.5,0.774]
[1767734834903,8.3783594,3278.3,3277.3,1.72081182]
[1767734835273,8.3783594,3278.3,3276.2,1.62717594]
[1767734835274,1.51561202,3278.2,3276.2,1.62717594]
[1767734835532,1.51561202,3278.2,3276.1,1.72081182]
[1767734835533,1.51561202,3278.1,3276.1,1.72081182]
[1767734835700,1.51561202,3278.1,3276.3,0.09363588]
[1767734835894,1.51561202,3277.9,3276.3,0.09163588]
[1767734836216,1.51561202,3277.9,3276.1,1.72081182]
[1767734836518,1.51561202,3277.7,3276.3,0.09363588]
[1767734836826,1.51561202,3277.7,3276.1,1.72081182]
[1767734836827,1.51561202,3277.5,3276.1,0.09363588]
[1767734837045,1.51561202,3277.5,3276.7,0.001]
[1767734837331,1.51561202,3277.3,3276.7,0.001]
[1767734838820,1.51561202,3277.1,3276.7,0.001]
[1767734839048,1.51561202,3276.9,3276.7,0.001]
[1767734839833,1.51561202,3276.9,3275.9,0.09363588]
[1767734840963,6.10351562,3276.8,3275.9,0.09363588]
[1767734843957,3.28262018,3277.4,3276.3,0.09363588]
[1767734843958,6.10258444,3277.3,3276.3,0.09363588]
[1767734844256,6.10258444,3277.3,3276.1,1.72081182]
[1767734844257,1.51561202,3277.2,3276.1,1.72081182]
[1767734844458,1.51561202,3277.2,3276.3,0.09363588]
[1767734845521,6.10295688,3277.1,3276.3,0.09363588]
[1767734847649,7.24975591,3277.1,3276.3,0.09363588]
[1767734848248,3.05142811,3277.2,3276.7,0.09363588]
[1767734848452,3.05142811,3277.2,3276.5,1.72081182]
[1767734848686,3.05142811,3277.2,3276.7,0.09363588]
[1767734849185,0.798,3277.6,3276.7,1.72081182]
[1767734849752,6.10020811,3277.5,3276.7,1.72081182]
[1767734849952,6.10020811,3277.5,3276.9,0.09363588]
[1767734850174,3.04809914,3277.5,3277.1,0.09363588]
[1767734850483,6.09920516,3277.5,3276.9,0.09363588]
[1767734851264,3.04809914,3277.5,3276.9,0.09363588]
[1767734851464,3.04809914,3277.5,3276.9,0.29228877]
[1767734851643,6.09920516,3277.5,3276.9,0.29228877]
[1767734852362,3.04809914,3277.5,3276.9,0.29228877]
[1767734852761,3.04809914,3277.5,3276.9,1.8812683]
[1767734856406,3.04809914,3277.5,3276.9,1.78763242]
[1767734857104,1.63558455,3277.4,3276.4,0.09363588]
[1767734858426,6.10258444,3277.3,3276.4,1.68261541]
[1767734858638,3.05129222,3277.3,3276.6,1.68261541]
[1767734858926,3.04328438,3277.3,3276.8,1.68261541]
[1767734859135,3.03527654,3277.3,3276.8,1.68261541]
[1767734859433,6.074557,3277.3,3276.6,0.09363588]
[1767734859599,6.074557,3277.3,3276.6,1.86024054]
[1767734859600,6.06654916,3277.3,3276.6,1.86024054]
[1767734859796,6.0595423,3277.3,3276.6,1.86024054]
[1767734860129,6.04753054,3277.3,3276.6,1.86024054]
[1767734860352,6.0395227,3277.3,3276.6,1.86024054]
[1767734860496,6.03151486,3277.3,3276.6,1.86024054]
[1767734860825,6.0195031,3277.3,3276.6,1.86024054]
[1767734861017,6.01149526,3277.3,3276.6,1.86024054]
[1767734861219,6.00348742,3277.3,3276.6,1.76660466]
[1767734861423,4.68641132,3277.8,3276.8,1.58897953]
[1767734861617,4.68641132,3277.8,3276.7,0.30081485]
[1767734861618,0.002,3278.2,3277.3,1.68261541]
[1767734861808,0.002,3278.2,3277.8,0.09363588]
[1767734862126,0.00099705,3278.4,3277.8,0.09363588]
[1767734862827,3.05127622,3278.4,3277.8,0.09363588]
[1767734863149,3.05127622,3278.4,3277.8,0.27126101]
[1767734863444,7.73713994,3278.4,3277.8,0.17762513]
[1767734863638,1.63558455,3278.3,3277.3,4.7338995]
[1767734863801,1.63558455,3278.3,3277.5,0.09363588]
[1767734864003,1.63558455,3278.3,3277.5,1.68261541]
[1767734864300,6.10155539,3278.4,3277.5,1.68261541]
[1767734864500,3.05127622,3278.4,3277.5,1.68261541]
[1767734864712,3.05127622,3278.4,3277.6,2.06235771]
[1767734865401,0.00099705,3278.4,3277.7,0.09363588]
[1767734866015,3.04991164,3278.8,3277.9,1.58897953]
[1767734866316,3.04590182,3278.8,3278.0,0.09363588]
[1767734866526,3.04590182,3278.8,3278.1,0.16826154]
[1767734866998,3.05174446,3279.0,3278.1,1.85087695]
[1767734867204,7.73707347,3279.0,3278.1,1.75724107]
[1767734868127,1.63558455,3278.9,3278.1,1.75724107]
[1767734868330,1.63558455,3278.9,3278.2,0.17572411]
[1767734868524,1.63558455,3278.9,3278.2,0.26935999]
[1767734869062,1.63558455,3278.9,3277.9,0.09363588]
[1767734869195,1.63558455,3278.9,3277.7,1.68261541]
[1767734869405,1.63558455,3278.9,3277.6,0.01393335]
[1767734869406,1.63558455,3278.9,3277.8,0.09363588]
[1767734870925,1.63558455,3278.7,3277.8,0.09363588]
[1767734871237,2.43358455,3278.6,3277.8,0.09363588]
[1767734871531,1.63558455,3278.5,3277.4,0.09363588]
[1767734872951,1.63558455,3278.3,3277.4,0.09363588]
[1767734875044,1.65333772,3278.6,3277.3,0.09363588]
[1767734875045,1.63558455,3278.1,3277.3,0.09363588]
[1767734875249,1.65333772,3278.6,3277.8,1.58897953]
[1767734875250,3.05017538,3278.5,3277.8,1.58897953]
[1767734875447,2.89692336,3278.8,3277.9,1.68261541]
[1767734875662,2.89692336,3278.8,3278.2,0.09363588]
[1767734875663,5.94599984,3278.8,3278.2,0.09363588]
[1767734875953,5.94599984,3278.8,3278.0,0.16826154]
[1767734875954,1.63558455,3278.7,3278.0,0.16826154]
[1767734876116,1.63558455,3278.7,3277.5,1.68261541]
[1767734876319,1.63558455,3278.5,3277.7,0.09363588]
[1767734877250,3.05026842,3278.4,3277.9,0.09363588]
[1767734878748,3.05020988,3278.5,3277.9,0.09363588]
[1767734879152,6.10041976,3278.5,3277.7,1.68261541]
[1767734879453,6.10041976,3278.5,3277.9,0.09363588]
[1767734879746,3.05020988,3278.5,3277.9,0.09363588]
[1767734881121,3.03819812,3278.5,3277.9,0.09363588]
[1767734881320,3.03119126,3278.5,3277.9,0.09363588]
[1767734881629,4.57858904,3278.5,3277.9,0.09363588]
[1767734881835,1.54539571,3278.4,3277.4,1.52953844]
[1767734882033,1.54539571,3278.4,3277.5,0.09363588]
[1767734882443,1.54539571,3278.4,3277.3,0.09363588]
[1767734882950,1.54539571,3278.4,3277.1,0.09363588]
[1767734882951,1.56041052,3278.3,3277.1,4.67463208]
[1767734883119,1.56041052,3278.3,3277.5,0.09363588]
[1767734883323,3.05045451,3278.2,3277.3,1.63613783]
[1767734883549,0.798,3278.1,3277.3,1.63613783]
[1767734884163,1.5717521,3278.6,3277.7,0.09363588]
[1767734884325,3.05019133,3278.5,3277.7,1.63613783]
[1767734884519,3.05019133,3278.5,3277.9,0.09363588]
[1767734884776,6.10038266,3278.5,3277.9,0.09363588]
[1767734884939,3.05019133,3278.5,3277.7,1.8091152]
[1767734885278,6.10038266,3278.5,3277.9,0.09363588]
[1767734885567,6.1001647,3278.6,3277.7,0.09363588]
[1767734885749,1.5717521,3278.5,3277.8,0.09363588]
[1767734887164,1.5717521,3278.4,3277.0,0.09363588]
[1767734887335,1.5717521,3278.4,3277.2,0.09363588]
[1767734887661,0.84699168,3278.5,3277.2,0.09363588]
[1767734887662,1.5717521,3278.2,3277.2,0.09363588]
[1767734887957,2.3697521,3278.1,3277.2,0.09363588]
[1767734889668,6.10128126,3278.0,3277.2,0.09363588]
[1767734889960,7.67303336,3278.0,3277.2,0.09363588]
[1767734892630,1.5717521,3277.9,3277.0,0.09363588]
[1767734892832,1.5717521,3277.9,3277.0,0.16361378]
[1767734893129,1.5717521,3277.9,3276.7,0.09463588]
[1767734893351,1.5717521,3277.9,3277.0,0.09363588]
[1767734893726,1.5717521,3277.9,3276.7,0.001]
[1767734894630,1.5717521,3277.7,3276.8,0.09363588]
[1767734894829,2.3697521,3277.6,3276.7,0.001]
[1767734895130,1.5717521,3277.5,3276.7,0.001]
[1767734896857,1.5717521,3277.3,3276.7,0.001]
[1767734897659,3.05119912,3277.4,3277.0,0.001]
[1767734898043,6.10239824,3277.4,3277.0,0.001]
[1767734898563,1.5717521,3277.3,3276.7,0.001]
[1767734898737,1.5717521,3277.0,3276.7,0.001]
[1767734900361,1.5717521,3277.0,3276.2,0.001]
[1767734900863,1.5717521,3276.8,3276.2,0.001]
[1767734902968,7.67545398,3276.7,3276.2,0.001]
[1767734905947,1.5717521,3276.6,3276.2,0.001]
[1767734907966,6.10307348,3276.5,3276.2,0.001]
[1767734908165,6.09506564,3276.5,3276.2,0.001]
[1767734908338,6.0870578,3276.5,3276.2,0.001]
[1767734908667,6.07504604,3276.5,3276.2,0.001]
[1767734908852,6.06603722,3276.5,3276.2,0.001]
[1767734909170,6.05402546,3276.5,3276.2,0.001]
[1767734909374,2.99398039,3276.5,3276.2,0.001]
[1767734909549,2.98597255,3276.5,3276.2,0.001]
[1767734909747,2.97796471,3276.5,3276.2,0.001]
[1767734909949,2.96995687,3276.5,3276.2,0.001]
[1767734910144,2.96194903,3276.5,3276.2,0.001]
[1767734910346,2.95394119,3276.5,3276.2,0.001]
[1767734910547,2.94593335,3276.5,3276.2,0.001]
[1767734910755,2.93792551,3276.5,3276.2,0.001]
[1767734910959,2.92991767,3276.5,3276.2,0.001]
[1767734911156,3.05194939,3276.6,3276.2,0.001]
[1767734911157,6.10370188,3276.7,3276.2,0.001]
[1767734911342,5.97957977,3276.7,3276.2,0.001]
[1767734911550,5.97957977,3276.7,3276.5,0.001]
[1767734916249,6.10332936,3276.9,3276.5,0.001]
[1767734917677,10.80962064,3276.9,3276.5,0.001]
[1767734917978,1.6546266,3276.8,3276.5,0.001]
[1767734918358,3.05185094,3276.7,3276.5,0.001]
[1767734920448,3.05185085,3276.8,3276.5,0.001]
[1767734920650,6.10332936,3276.9,3276.5,0.001]
[1767734922950,6.90132936,3276.9,3276.4,0.88798464]
[1767734924478,0.799,3277.6,3276.6,0.89215458]
[1767734924677,0.65738979,3277.5,3276.6,0.89215458]
[1767734924983,1.6546266,3277.3,3276.5,0.09363588]
[1767734925483,1.6546266,3277.3,3276.6,0.8935216]
[1767734925685,6.10221204,3277.5,3276.6,0.8935216]
[1767734925880,0.6575138,3277.4,3276.6,0.8935216]
[1767734926256,1.6546266,3277.3,3276.2,0.9895116]
[1767734926662,0.65752629,3277.2,3276.2,0.9895116]
[1767734926981,1.6546266,3277.1,3276.2,0.001]
[1767734927480,1.6546266,3277.0,3276.3,0.09363588]
[1767734927983,3.05166468,3276.9,3276.3,0.09363588]
[1767734928172,4.69828344,3276.9,3276.3,0.09363588]
[1767734928377,3.03464802,3276.9,3276.2,0.99216303]
[1767734928677,3.02263626,3276.9,3276.4,0.89752715]
[1767734928979,3.0106245,3276.9,3276.4,0.89752715]
[1767734929184,3.00461862,3276.9,3276.4,0.89752715]
[1767734929482,2.99460882,3276.9,3276.4,0.89752715]
[1767734929687,2.98660098,3276.9,3276.4,0.89752715]
[1767734929883,2.97759216,3276.9,3276.4,0.89752715]
[1767734930086,3.01553758,3277.0,3276.4,0.89752715]
[1767734930293,6.06711071,3277.0,3276.4,0.89752715]
[1767734931181,6.06711071,3277.0,3276.2,0.001]
[1767734931793,7.72173731,3277.0,3276.2,0.001]
[1767734932492,7.72173731,3277.0,3276.3,0.09363588]
[1767734935567,6.06711071,3277.0,3276.6,0.001]
[1767734936296,7.72173731,3277.0,3276.6,0.001]
[1767734937677,1.57263104,3276.9,3276.6,0.001]
[1767734937893,6.06711071,3277.0,3276.6,0.001]
[1767734939993,3.84951903,3277.1,3276.6,0.91330336]
[1767734940193,6.90103806,3277.1,3276.6,0.91330336]
[1767734941620,1.59267723,3277.8,3276.8,0.91564289]
[1767734941901,1.59267723,3277.8,3276.7,0.09363588]
[1767734941902,7.55754084,3277.7,3276.9,0.09363588]
[1767734942102,0.65770114,3277.6,3277.0,0.91564289]
[1767734942307,6.8998397,3277.7,3277.0,0.91564289]
[1767734942517,2.25017598,3277.6,3276.9,0.09363588]
[1767734942669,1.59267723,3277.6,3276.9,0.09363588]
[1767734943709,3.05110602,3277.5,3276.9,0.09363588]
[1767734944010,3.05110602,3277.5,3276.7,0.09363588]
[1767734944011,1.59267723,3277.4,3276.7,0.09363588]
[1767734944507,1.59267723,3277.4,3276.7,1.01255776]
[1767734946103,1.59267723,3277.2,3276.6,0.001]
[1767734946497,2.39067723,3277.1,3276.6,0.001]
[1767734947190,2.39267723,3277.1,3276.6,0.001]
[1767734947924,3.05157155,3277.0,3276.6,0.001]
[1767734948124,0.002,3277.1,3276.7,1.01572407]
[1767734948327,1.59467723,3278.1,3276.9,1.01672697]
[1767734948528,0.798,3277.9,3277.1,0.92309109]
[1767734948708,1.59267723,3277.8,3276.9,1.01672697]
[1767734948896,1.59267723,3277.8,3277.1,0.09363588]
[1767734949430,6.10134777,3278.0,3277.4,0.09363588]
[1767734950519,1.59267723,3277.9,3277.1,0.09363588]
[1767734950915,1.59267723,3277.9,3277.3,0.09363588]
[1767734951530,1.58867331,3277.9,3277.3,0.09363588]
[1767734951830,1.57666155,3277.9,3277.3,0.09363588]
[1767734951994,1.56765273,3277.9,3277.3,0.09363588]
[1767734952199,4.61041629,3277.9,3277.3,0.09363588]
[1767734952426,4.60240845,3277.9,3277.3,0.09363588]
[1767734952637,4.59440061,3277.9,3277.5,0.09363588]
[1767734952922,4.58439081,3277.9,3277.5,0.09363588]
[1767734953102,6.10054182,3277.9,3277.3,0.09363588]
[1767734953426,1.58266743,3277.8,3277.1,0.09363588]
[1767734953629,1.57465959,3277.8,3277.1,0.09363588]
[1767734953813,1.56665175,3277.8,3277.1,0.09363588]
[1767734954139,1.55463999,3277.8,3277.1,0.09363588]
[1767734954342,3.04791691,3277.7,3277.1,0.09363588]
[1767734954497,3.03890809,3277.7,3277.3,1.13198979]
[1767734954825,3.02689633,3277.7,3277.3,1.13198979]
[1767734955125,3.01488457,3277.7,3277.3,1.13198979]
[1767734955446,5.94828126,3278.0,3277.3,1.13198979]
[1767734955600,5.94712962,3278.0,3277.3,1.03835391]
[1767734956331,5.94712962,3278.0,3277.5,1.04047924]
[1767734956529,5.94712962,3278.0,3277.6,0.09363588]
[1767734956732,3.04855462,3278.1,3277.6,1.13411512]
[1767734956905,3.04054678,3278.1,3277.6,1.13411512]
[1767734957107,3.03253894,3278.1,3277.6,1.13411512]
[1767734957339,3.0245311,3278.1,3277.6,1.13411512]
[1767734957500,1.58767232,3278.2,3277.6,0.09363588]
[1767734957701,1.57966448,3278.2,3277.6,0.09363588]
[1767734957927,1.57165664,3278.2,3277.6,0.09363588]
[1767734958130,1.5636488,3278.2,3277.8,0.09363588]
[1767734958308,1.55564096,3278.2,3277.8,0.09363588]
[1767734958510,1.54763312,3278.2,3277.8,0.09363588]
[1767734958731,1.53962528,3278.2,3277.8,0.09363588]
[1767734959028,1.5286145,3278.2,3277.8,0.09363588]
[1767734959202,1.52060666,3278.2,3277.8,0.09363588]
[1767734959398,4.56310493,3278.2,3277.8,0.09363588]
[1767734959637,4.55409611,3278.2,3277.8,0.09363588]
[1767734959813,4.54608827,3278.2,3277.8,0.09363588]
[1767734960011,4.54608827,3278.2,3277.5,0.09363588]
[1767734960012,1.58967429,3278.1,3277.5,0.09363588]
[1767734960212,6.08900046,3278.2,3277.5,1.23938794]
[1767734960438,3.03048651,3278.2,3277.6,1.14686956]
[1767734960604,3.02247867,3278.2,3277.7,0.09363588]
[1767734960804,3.01447083,3278.2,3277.7,1.24050544]
[1767734961041,6.05797008,3278.2,3277.7,1.24050544]
[1767734961240,6.05196224,3278.2,3277.7,1.24050544]
[1767734961426,0.00099902,3278.2,3277.7,1.24050544]
[1767734961744,3.04920589,3278.3,3277.7,1.24050544]
[1767734961911,6.09960045,3278.3,3277.7,1.24050544]
[1767734962612,1.58867331,3278.2,3277.7,0.09363588]
[1767734962816,1.58066547,3278.2,3277.7,0.09363588]
[1767734963042,1.57165665,3278.2,3277.7,0.09363588]
[1767734963222,1.56364881,3278.2,3277.7,0.09363588]
[1767734963417,3.04854561,3278.1,3277.7,0.09363588]
[1767734963622,3.04053777,3278.1,3277.7,1.27888627]
[1767734963811,3.03152895,3278.1,3277.7,1.27888627]